bitfinex-derivatives/quotes_ETHF0:USTF0_20250518
["timestamp","ask_amount","ask_price","bid_price","bid_amount"]
[1747589227631,3.2078,2546.2,2546.1,3.736]
[1747589227836,3.2078,2546.5,2546.1,6.08378269]
[1747589228027,1.57114505,2546.7,2546.1,3.736]
[1747589228233,1.57114505,2546.7,2546.2,2.34778269]
[1747589228431,3.2078,2546.5,2546.2,2.34778269]
[1747589228642,3.2078,2546.5,2546.4,2.34778269]
[1747589228837,4.77894505,2546.5,2546.4,2.34778269]
[1747589229024,4.77894505,2546.5,2546.1,3.736]
[1747589229226,3.2078,2546.2,2546.1,6.08378269]
[1747589229436,3.84271742,2546.4,2546.1,6.08378269]
[1747589229834,8.84271742,2546.4,2544.4,3.2078]
[1747589230032,3.2078,2545.5,2544.7,2.34778269]
[1747589230227,3.2078,2545.8,2545.7,9.89841032]
[1747589230436,2.17993658,2546.2,2545.7,3.2078]
[1747589230631,2.17993658,2546.2,2546.1,15.45399301]
[1747589230834,2.17993658,2546.2,2546.1,12.24619301]
[1747589231031,2.17993658,2546.2,2546.1,12.17797571]
[1747589231244,2.17993658,2546.2,2546.0,3.058]
[1747589231539,1.57114505,2546.1,2546.0,5.33756539]
[1747589231740,1.57114505,2546.1,2546.0,3.058]
[1747589231941,1.57114505,2546.1,2546.0,15.23597571]
[1747589232836,1.57114505,2546.1,2546.0,3.058]
[1747589233031,1.57114505,2546.1,2546.0,15.23597571]
[1747589233231,1.57114505,2546.1,2546.0,18.44377571]
[1747589233432,1.57114505,2546.1,2546.0,15.23597571]
[1747589233835,1.57114505,2546.1,2546.0,26.59545571]
[1747589234139,1.44794659,2546.2,2546.1,0.78525]
[1747589234333,0.63491742,2546.4,2546.3,0.78519]
[1747589234536,0.63491742,2546.4,2546.3,12.96316571]
[1747589235036,0.96309701,2546.8,2546.4,12.17797571]
[1747589235238,3.2078,2546.8,2546.7,2.27956539]
[1747589235436,3.2078,2545.5,2543.3,3.2078]
[1747589235634,3.2078,2544.7,2543.9,3.2078]
[1747589235834,3.2078,2545.1,2544.9,0.7856]
[1747589236036,3.2078,2545.1,2544.9,15.37358201]
[1747589236243,3.2078,2545.1,2545.0,2.27956539]
[1747589236441,3.2078,2545.3,2545.0,2.27956539]
[1747589236635,3.2078,2545.6,2545.0,15.37358201]
[1747589236938,3.2078,2545.1,2543.9,3.058]
[1747589237236,3.2078,2544.1,2542.3,5.27825455]
[1747589237443,37.95,2545.6,2542.3,2.07045455]
[1747589237444,3.2078,2543.5,2542.3,2.07045455]
[1747589237741,0.7864,2542.4,2541.5,3.2078]
[1747589237937,3.2078,2542.2,2541.4,2.1280303]
[1747589238138,3.2078,2542.2,2541.8,22.81038982]
[1747589238346,3.2078,2542.2,2542.0,2.27956539]
[1747589238536,3.2078,2542.2,2541.8,20.53082443]
[1747589238737,3.2078,2542.6,2542.1,0.07867511]
[1747589238934,3.2078,2541.5,2540.5,2.18560606]
[1747589239233,3.2078,2541.8,2540.8,3.2078]
[1747589239429,7.5324775,2544.1,2541.6,3.83387188]
[1747589239430,3.2078,2542.2,2541.6,3.83387188]
[1747589239633,3.2078,2542.2,2541.7,3.83387188]
[1747589239837,3.2078,2542.2,2542.0,3.83387188]
[1747589240040,3.2078,2542.2,2541.7,2.15681818]
[1747589240041,3.2078,2542.2,2541.7,3.2078]
[1747589240237,3.2078,2541.8,2540.5,2.18560606]
[1747589240437,32.541,2542.4,2540.6,2.15681818]
[1747589240438,3.2078,2541.3,2540.6,2.15681818]
[1747589240639,3.2078,2541.0,2540.9,2.97704188]
[1747589240936,3.2078,2541.1,2540.5,2.18560606]
[1747589241147,3.2078,2541.1,2540.9,3.058]
[1747589241340,3.2078,2540.4,2539.0,0.2538384]
[1747589241540,3.2078,2539.9,2539.7,2.15681818]
[1747589241744,3.2078,2539.9,2539.7,4.56872929]
[1747589242141,3.2078,2539.9,2539.8,5.13386006]
[1747589242344,3.2078,2539.9,2539.8,5.12204182]
[1747589242537,3.2078,2539.9,2539.8,20.49562383]
[1747589242836,3.2078,2539.9,2539.6,4.29270182]
[1747589243044,0.78763,2538.4,2538.3,1.44355545]
[1747589243338,0.78763,2538.4,2538.3,1.86e-06]
[1747589243339,3.99543,2538.4,2538.3,1.86e-06]
[1747589243540,0.78776,2538.0,2537.9,1.66562334]
[1747589243741,3.99556,2538.0,2537.9,1.66562334]
[1747589244134,3.99556,2538.0,2537.9,3.41329334]
[1747589244339,0.78804,2537.1,2536.6,2.44469697]
[1747589244536,3.2078,2538.1,2537.1,2.88093115]
[1747589244739,3.2078,2538.1,2537.5,3.2078]
[1747589245039,5.0,2538.1,2536.9,3.2078]
[1747589245236,3.2078,2537.1,2536.6,1.10156697]
[1747589245434,3.2078,2536.7,2536.6,18.90004203]
[1747589245742,3.2078,2536.7,2535.7,2.50227273]
[1747589245942,3.2078,2536.7,2533.6,2.57752132]
[1747589245943,3.2078,2534.0,2533.6,2.57752132]
[1747589246145,3.99689,2533.7,2533.6,1.62350132]
[1747589246348,3.99689,2533.7,2533.6,0.45360269]
[1747589246739,3.2078,2533.7,2533.6,2.21843693]
[1747589246940,0.78925,2533.2,2531.8,2.76136364]
[1747589247137,79.81430091,2533.2,2530.4,3.2078]
[1747589247337,79.81430091,2533.2,2526.9,7.06110031]
[1747589247338,9.60523772,2530.6,2521.4,3.45227273]
[1747589247545,3.2078,2525.5,2523.6,0.31724376]
[1747589247743,0.79253,2522.8,2520.1,3.53863636]
[1747589247952,3.2078,2520.5,2519.3,22.34537054]
[1747589248141,3.2078,2519.4,2516.7,10.27069136]
[1747589248440,0.792,2519.7,2518.5,7.98947403]
[1747589248641,3.2078,2518.6,2516.6,8.85788735]
[1747589248837,3.2078,2519.4,2518.8,5.956]
[1747589249146,3.2078,2520.9,2519.5,39.36237591]
[1747589249440,0.79332,2520.3,2519.5,56.81989669]
[1747589249644,3.2078,2519.8,2519.1,0.0542773]
[1747589249839,3.2078,2520.0,2518.1,3.2078]
[1747589250040,3.2078,2518.2,2515.3,3.2078]
[1747589250241,3.2078,2517.0,2515.4,0.07951021]
[1747589250446,1.57950091,2518.1,2516.7,3.2078]
[1747589250645,3.2078,2516.9,2515.4,4.60659952]
[1747589250849,0.396,2517.4,2515.5,0.07950705]
[1747589251044,5.10922061,2516.8,2514.8,9.21862388]
[1747589251246,3.2078,2516.6,2515.4,1.44401]
[1747589251544,3.2078,2521.0,2518.3,3.2078]
[1747589251850,3.2078,2521.0,2520.2,3.2078]
[1747589252147,1.248,2522.0,2520.6,27.4903131]
[1747589252342,3.2078,2520.7,2520.2,46.12990517]
[1747589252545,1.248,2522.0,2520.3,7.9346]
[1747589252546,3.2078,2520.6,2520.3,7.9346]
[1747589252845,2.89857153,2522.7,2518.3,3.058]
[1747589252846,3.2078,2520.4,2518.3,3.058]
[1747589253045,2.89857153,2522.7,2520.5,3.2078]
[1747589253344,2.89857153,2522.7,2521.8,3.2078]
[1747589253543,3.2078,2522.6,2521.9,20.15318423]
[1747589253746,3.2078,2522.4,2521.5,5.70103621]
[1747589253946,2.89857153,2522.7,2522.6,19.22236423]
[1747589254148,1.248,2526.2,2523.4,5.70103621]
[1747589254353,4.4558,2526.2,2525.6,22.43016423]
[1747589254540,3.2078,2525.7,2523.9,3.2078]
[1747589254852,3.2078,2526.5,2526.1,19.22236423]
[1747589255050,1.2423,2527.8,2526.2,8.90883621]
[1747589255341,3.2078,2528.2,2528.0,16.17109423]
[1747589255546,3.2078,2526.6,2525.4,1.5456]
[1747589255743,3.2078,2525.9,2525.8,16.17109423]
[1747589256045,1.22971,2525.9,2525.8,16.17109423]
[1747589256246,3.2078,2527.8,2526.4,16.17109423]
[1747589256450,0.79146,2526.1,2526.0,2.40097]
[1747589256745,0.79163,2525.6,2524.2,3.2078]
[1747589256943,3.2078,2526.1,2522.1,39.859]
[1747589256944,3.2078,2525.4,2523.8,3.2078]
[1747589257150,3.2078,2525.9,2523.8,3.058]
[1747589257347,1.2423,2526.0,2523.8,3.058]
[1747589257348,3.2078,2525.8,2523.9,3.2078]
[1747589257647,0.79251,2522.8,2522.6,5.5742]
[1747589257947,3.2078,2523.3,2521.0,3.2078]
[1747589258138,3.2078,2524.2,2522.7,4.43058621]
[1747589258341,3.2078,2522.8,2521.1,0.26823541]
[1747589258546,1.98108,2523.1,2518.3,3.2078]
[1747589258547,3.2078,2521.6,2518.3,3.2078]
[1747589258743,3.2078,2519.9,2518.5,0.17104362]
[1747589258938,3.2078,2521.7,2519.8,3.2078]
[1747589259138,3.2078,2521.1,2519.5,3.2078]
[1747589259346,3.2078,2521.8,2520.0,3.2078]
[1747589259548,3.2078,2521.3,2520.0,3.2078]
[1747589259848,3.2078,2521.6,2520.1,4.34044984]
[1747589260038,3.2078,2521.7,2520.2,39.891]
[1747589260239,3.2078,2522.4,2521.0,3.2078]
[1747589260550,35.617,2525.2,2522.1,3.2078]
[1747589260751,3.2078,2524.7,2523.1,3.2078]
[1747589260950,0.79214,2524.0,2523.7,3.2078]
[1747589261249,3.2078,2524.6,2523.3,3.2078]
[1747589261450,0.79213,2524.0,2523.4,3.2078]
[1747589261643,3.2078,2523.9,2522.3,4.16983479]
[1747589261840,0.79242,2523.1,2522.9,1.5443408]
[1747589262050,3.2078,2523.0,2522.2,7.39521413]
[1747589262351,3.2078,2522.6,2522.2,4.27306413]
[1747589262549,3.2078,2521.9,2519.5,3.2078]
[1747589262750,3.96305,2522.5,2519.4,1.0867]
[1747589262751,3.2078,2522.0,2520.4,3.2078]
[1747589263053,3.2078,2521.8,2520.5,0.07934933]
[1747589263249,3.2078,2523.5,2521.7,3.2078]
[1747589263557,3.2078,2523.5,2521.6,3.2078]
[1747589263857,3.2078,2523.5,2521.9,3.2078]
[1747589264049,3.2078,2524.4,2523.2,3.2078]
[1747589264250,3.2078,2525.2,2523.5,3.2078]
[1747589264449,1.3774,2525.8,2523.3,1.3072]
[1747589264450,3.2078,2525.1,2523.9,3.2078]
[1747589264652,3.2078,2525.1,2523.3,5.51623695]
[1747589264653,3.2078,2525.5,2524.3,3.2078]
[1747589264844,3.2078,2525.5,2523.0,39.906]
[1747589264845,0.07919537,2525.4,2524.6,3.2078]
[1747589265044,0.07919537,2525.4,2524.9,3.2078]
[1747589265356,0.07919537,2525.4,2524.5,3.2078]
[1747589265551,3.2078,2525.1,2523.1,1.008]
[1747589265753,0.07919537,2525.4,2524.4,3.2078]
[1747589265957,0.07919537,2525.4,2524.7,3.2078]
[1747589266168,4.55604237,2526.4,2525.3,3.2078]
[1747589266363,0.07919537,2526.0,2524.8,4.45140696]
[1747589266667,3.2078,2525.8,2525.0,3.2078]
[1747589266866,1.9786,2526.2,2524.7,3.2078]
[1747589267066,3.95499,2527.7,2524.0,39.919]
[1747589267067,3.2078,2525.8,2525.1,7.47148335]
[1747589267365,3.2078,2526.8,2525.7,3.2078]
[1747589267663,3.2078,2526.9,2525.9,3.2078]
[1747589267861,3.2078,2526.9,2525.6,3.2078]
[1747589268056,0.79125,2526.8,2525.6,3.2078]
[1747589268272,4.55604237,2527.2,2525.9,3.2078]
[1747589268567,0.79133,2526.6,2525.9,3.2078]
[1747589268762,0.79128,2526.7,2525.9,3.2078]
[1747589268963,1.58350965,2526.8,2525.3,1.0781]
[1747589268964,3.28699537,2526.0,2525.3,0.02504]
[1747589269164,3.2078,2525.8,2524.5,3.2078]
[1747589269369,0.07919537,2525.7,2524.2,3.2078]
[1747589269560,3.2078,2525.8,2525.0,3.2078]
[1747589269761,1.58350965,2525.6,2525.1,1.3482]
[1747589270157,1.58350965,2525.6,2525.5,3.2078]
[1747589270366,1.58350965,2525.6,2525.5,8.2078]
[1747589270570,3.2078,2526.6,2525.5,10.93635884]
[1747589270868,3.2078,2527.0,2525.8,0.79154]
[1747589271067,3.2078,2527.0,2525.9,42.0567]
[1747589271271,3.2078,2527.0,2525.9,49.04352123]
[1747589271466,3.33796063,2527.0,2526.9,3.2078]
[1747589271975,5.36904006,2527.5,2526.9,8.2078]
[1747589272168,3.2078,2527.9,2527.3,3.2078]
[1747589272466,3.26555,2529.4,2527.7,3.2078]
[1747589272467,0.07919537,2529.1,2527.7,3.2078]
[1747589272668,3.99839,2528.9,2528.0,3.2078]
[1747589272871,0.86990537,2528.6,2527.8,5.85453642]
[1747589273166,3.2078,2528.3,2527.8,1.3752]
[1747589273665,3.2078,2528.5,2527.8,1.3752]
[1747589273867,0.07919537,2528.5,2527.4,3.0007635]
[1747589274064,3.2078,2528.6,2527.7,3.2078]
[1747589274667,3.2078,2528.4,2527.4,3.2078]
[1747589275065,3.2078,2528.4,2527.8,3.2078]
[1747589275367,3.2078,2527.9,2527.8,0.79093]
[1747589275565,3.2078,2528.2,2527.2,39.917]
[1747589275764,3.2078,2528.5,2528.3,0.79075]
[1747589276067,10.90429638,2528.5,2527.4,3.2078]
[1747589276261,10.90429638,2528.5,2527.5,34.61389471]
[1747589276467,10.90429638,2528.5,2527.9,4.35899465]
[1747589276665,10.90429638,2528.5,2527.9,1.97726]
[1747589276866,10.90429638,2528.5,2528.4,0.79075]
[1747589277062,8.90429638,2528.5,2528.4,0.79075]
[1747589277268,8.90429638,2528.5,2528.4,5.0]
[1747589277474,8.90429638,2528.5,2528.4,10.10739393]
[1747589277668,1.34151686,2528.6,2528.5,0.79071]
[1747589277869,3.2078,2529.4,2528.4,44.20964393]
[1747589278071,3.2078,2529.4,2529.3,0.79046]
[1747589278472,3.2078,2529.4,2529.3,9.93689612]
[1747589278774,3.2078,2529.9,2529.8,0.79031]
[1747589279171,3.2078,2529.9,2529.8,5.79031]
[1747589279364,3.2078,2529.9,2529.5,1.336]
[1747589279569,3.2078,2529.9,2529.8,0.79031]
[1747589279767,3.2078,2530.3,2530.0,0.79023]
[1747589279970,3.2078,2530.3,2529.6,4.15383464]
[1747589280168,3.2078,2530.3,2529.8,3.2078]
[1747589280470,12.25228989,2530.6,2530.5,0.79009]
[1747589280869,3.2078,2531.0,2530.9,0.78996]
[1747589281071,12.25228989,2532.1,2530.9,39.879]
[1747589281273,12.25228989,2532.1,2531.3,0.78984]
[1747589281274,3.2078,2531.4,2531.3,0.78984]
[1747589281671,3.2078,2531.9,2531.3,9.13354821]
[1747589281972,12.25228989,2532.1,2531.3,9.13354821]
[1747589281973,12.25228989,2532.1,2531.6,1.72939726]
[1747589282177,12.25228989,2532.1,2532.0,0.78962]
[1747589282683,12.25228989,2532.1,2532.0,4.4169099]
[1747589282977,22.38124765,2532.1,2530.6,39.857]
[1747589283175,3.2078,2531.9,2531.0,1.3395]
[1747589283475,12.25228989,2532.1,2532.0,0.78962]
[1747589283672,12.25228989,2532.1,2531.9,39.857]
[1747589284068,1.58013889,2532.0,2531.9,39.857]
[1747589284377,1.65933426,2532.0,2531.9,39.857]
[1747589284575,1.58013889,2532.0,2531.9,39.857]
[1747589285275,1.58013889,2532.0,2531.9,45.64665]
[1747589285466,4.78793889,2532.0,2531.9,41.51163112]
[1747589285668,1.58013889,2532.0,2531.9,40.83312995]
[1747589285974,7.47120998,2533.2,2531.9,12.76426641]
[1747589286279,0.07919537,2532.4,2532.2,0.78954]
[1747589286478,0.07919537,2532.2,2531.7,40.6337]
[1747589286779,3.2078,2532.5,2532.4,0.7895]
[1747589286975,10.53491943,2532.8,2532.2,4.5452]
[1747589287270,7.32711943,2532.8,2532.7,0.7894]
[1747589287471,6.33418943,2532.8,2532.7,0.7894]
[1747589287672,3.94891943,2532.8,2532.7,10.03173305]
[1747589287869,2.15892943,2532.8,2532.7,10.03173305]
[1747589288071,3.52675998,2533.2,2533.1,0.78928]
[1747589288268,15.14601043,2534.2,2533.1,0.78928]
[1747589288269,11.44032043,2534.2,2534.1,0.78897]
[1747589288569,11.44032043,2534.2,2534.1,4.99216913]
[1747589288776,9.35663043,2534.2,2534.1,13.19996913]
[1747589288973,6.63046043,2534.2,2534.1,13.19996913]
[1747589289179,2.34561043,2534.2,2534.1,13.19996913]
[1747589289380,0.33173043,2534.2,2534.1,13.19996913]
[1747589289868,4.3e-07,2534.2,2534.1,9.99216913]
[1747589290067,1.2553,2536.1,2534.1,9.99216913]
[1747589290068,2.91735254,2535.3,2534.5,1.97208]
[1747589290270,3.28699537,2535.0,2534.5,39.826]
[1747589290475,0.07919537,2535.2,2534.6,7.73599649]
[1747589290775,2.91735254,2535.3,2535.2,0.78863]
[1747589290974,0.07919537,2534.8,2533.9,1.97256]
[1747589291279,3.2078,2534.8,2534.7,0.78878]
[1747589291477,2.91735254,2535.3,2534.7,3.2078]
[1747589291677,2.91735254,2535.3,2535.1,0.78864]
[1747589291870,0.07919537,2535.1,2534.7,4.26430143]
[1747589292175,2.91735254,2535.3,2535.2,5.05293143]
[1747589292381,0.43143254,2535.3,2535.2,3.99643]
[1747589292574,2.54e-06,2535.3,2535.2,10.05293143]
[1747589292977,2.61462321,2535.8,2535.7,0.78847]
[1747589293176,3.21e-06,2535.8,2535.7,3.99627]
[1747589293477,3.05209694,2536.3,2536.2,0.78832]
[1747589293680,3.05209694,2536.3,2536.2,43.80312]
[1747589293880,0.80334694,2536.3,2536.2,53.09900187]
[1747589294075,6.94e-06,2536.3,2536.2,53.09900187]
[1747589294378,8.20780694,2536.3,2535.0,3.2078]
[1747589294568,1.3212,2536.2,2535.1,3.2078]
[1747589294773,2.62528283,2536.3,2535.1,3.2078]
[1747589294774,6.94e-06,2536.3,2536.2,0.78832]
[1747589295681,6.94e-06,2536.3,2536.2,13.35364054]
[1747589295978,0.19955935,2537.1,2537.0,0.78807]
[1747589296383,0.19955935,2537.1,2537.0,5.78807]
[1747589296683,0.19955935,2537.1,2537.0,5.07994807]
[1747589296984,0.19955935,2537.1,2537.0,0.78807]
[1747589297281,9.35e-06,2537.1,2537.0,10.07994807]
[1747589297676,0.804754,2537.6,2537.5,0.78791]
[1747589297881,4e-06,2537.6,2537.2,3.2078]
[1747589298071,3.2078,2537.3,2536.4,0.78824]
[1747589298379,3.2078,2537.0,2536.9,0.7881]
[1747589298586,3.2078,2537.0,2536.5,4.18434708]
[1747589298878,3.2078,2536.7,2536.0,0.78836]
[1747589299075,5.0,2537.0,2533.9,5.18039]
[1747589299076,3.2078,2536.1,2533.9,5.18039]
[1747589299276,3.2078,2535.4,2534.2,3.2078]
[1747589299474,1.97046,2536.7,2534.9,3.2078]
[1747589299678,3.2078,2535.8,2534.5,3.2078]
[1747589299879,3.2078,2535.4,2535.0,4.37546647]
[1747589300182,3.2078,2535.1,2534.5,4.37546647]
[1747589300378,3.2078,2535.1,2535.0,0.78869]
[1747589300775,3.2078,2535.1,2534.3,3.2078]
[1747589300982,3.2078,2535.1,2534.4,35.505]
[1747589301171,3.2078,2536.2,2535.0,7.52939183]
[1747589301377,1.96969,2537.7,2535.0,7.52939183]
[1747589301378,1.3066,2536.1,2536.0,0.78838]
[1747589301580,1.3066,2536.1,2533.2,3.2078]
[1747589301581,3.2078,2535.4,2533.2,3.2078]
[1747589301791,3.2078,2534.2,2533.1,1.97319]
[1747589302078,3.2078,2533.7,2533.3,4.46496372]
[1747589302387,3.2078,2534.0,2533.9,0.78903]
[1747589302589,3.2078,2534.0,2533.2,3.28921]
[1747589302782,3.2078,2534.0,2533.8,0.78904]
[1747589303086,3.2078,2534.0,2533.8,0.78905]
[1747589303386,8.2078,2534.0,2533.1,39.766]
[1747589303585,3.2078,2533.9,2533.1,39.766]
[1747589303781,3.2078,2533.9,2533.8,0.78905]
[1747589304181,1.3557,2534.4,2534.3,0.78891]
[1747589304377,3.2078,2535.2,2535.1,0.78866]
[1747589304577,1.3557,2535.9,2535.8,0.78844]
[1747589304783,3.2078,2537.4,2535.8,1.97111]
[1747589305079,3.2078,2537.1,2536.4,0.78824]
[1747589305388,3.2078,2535.8,2534.6,0.78882]
[1747589305579,2.4457,2535.7,2535.3,3.2078]
[1747589305883,3.2078,2535.4,2535.0,5.00296023]
[1747589306187,1.3557,2535.7,2535.4,5.00296023]
[1747589306683,1.3557,2535.7,2535.0,0.78867]
[1747589306888,3.2078,2535.5,2535.1,5.00296023]
[1747589307184,3.2078,2535.2,2534.8,0.78873]
[1747589307385,3.2078,2535.2,2534.6,4.49112432]
[1747589307583,3.2078,2535.2,2534.9,5.00296023]
[1747589307584,1.2713,2535.1,2534.9,5.00296023]
[1747589307880,0.07889546,2535.0,2534.9,0.78872]
[1747589308385,1.65648095,2535.0,2534.9,13.53986821]
[1747589308577,5.21335889,2535.6,2534.9,5.00296023]
[1747589308784,0.0788799,2535.5,2535.4,0.78857]
[1747589309085,0.0788799,2535.5,2535.1,5.00296023]
[1747589309293,4.08824765,2535.5,2535.1,5.79162023]
[1747589309581,0.88044765,2535.5,2534.8,4.15809188]
[1747589309784,3.2078,2534.9,2532.8,3.2078]
[1747589309982,3.2078,2533.0,2532.4,4.05214023]
[1747589310182,3.2078,2533.0,2531.5,1.267]
[1747589310183,3.2078,2532.5,2532.3,4.42012856]
[1747589310380,3.2078,2532.5,2532.4,4.05214023]
[1747589310885,3.2078,2532.5,2532.4,6.45837248]
[1747589311190,3.2078,2532.5,2532.4,7.24787248]
[1747589311386,3.2078,2532.5,2532.4,2.40623225]
[1747589311590,3.2078,2532.5,2532.4,7.24787248]
[1747589311888,3.2078,2532.5,2532.4,14.14104703]
[1747589312386,3.2078,2532.5,2532.4,9.14104703]
[1747589312584,3.2078,2532.5,2532.4,0.14167795]
[1747589313489,3.2078,2532.5,2532.4,4.19381818]
[1747589313682,3.2078,2532.5,2532.4,1.17343971]
[1747589313889,3.2078,2532.5,2532.4,6.23382974]
[1747589314086,3.2078,2532.8,2532.4,10.44432974]
[1747589314295,3.2078,2532.8,2532.7,1.17343971]
[1747589314480,3.2078,2532.8,2532.7,1.96284971]
[1747589315291,1.97246,2534.1,2533.0,0.78931]
[1747589315292,3.2078,2533.1,2533.0,0.78931]
[1747589315480,1.3591,2533.8,2533.7,0.7891]
[1747589315681,5.68344369,2534.4,2534.1,1.17343971]
[1747589315983,2.47564369,2534.4,2534.3,0.44323111]
[1747589316288,1.58962369,2534.4,2534.3,1.23214111]
[1747589316492,3.2078,2534.7,2534.6,0.78882]
[1747589316686,3.2078,2534.7,2534.6,1.23205111]
[1747589316888,3.2078,2534.7,2534.6,5.44300724]
[1747589317386,3.2078,2534.7,2534.0,1.2567]
[1747589317692,3.2078,2534.4,2534.3,1.23214111]
[1747589317884,3.2078,2534.4,2534.3,0.78891]
[1747589318086,4.5669,2534.7,2534.6,0.78882]
[1747589318288,3.2078,2534.7,2534.6,0.78882]
[1747589318590,3.2078,2534.7,2534.6,10.59553208]
[1747589318788,1.2589,2535.4,2534.7,0.78878]
[1747589318789,3.2078,2535.0,2534.7,0.78878]
[1747589318990,0.92883149,2535.3,2535.2,0.78863]
[1747589319184,0.92883149,2535.3,2535.2,1.23186111]
[1747589319487,0.92883149,2535.3,2535.2,0.78863]
[1747589320897,1.39e-06,2535.5,2535.4,0.78857]
[1747589321092,3.82209028,2535.6,2535.5,0.78854]
[1747589321391,0.85232378,2535.9,2535.8,0.78844]
[1747589321595,3.2078,2536.6,2536.2,0.78832]
[1747589322097,8.00336805,2536.3,2536.2,0.78832]
[1747589322400,8.00336805,2536.3,2536.2,5.08344706]
[1747589322783,8.00336805,2536.3,2535.3,7.15076]
[1747589322784,11.21116805,2536.3,2535.2,1.97157]
[1747589322984,11.21116805,2536.3,2535.4,3.2078]
[1747589322985,3.2078,2536.0,2535.4,3.2078]
[1747589323190,3.2078,2536.0,2535.3,4.46064853]
[1747589323394,3.2078,2534.1,2532.4,0.09218003]
[1747589323594,3.2078,2533.1,2532.7,1.0]
[1747589323795,3.2078,2533.1,2532.6,7.8878]
[1747589323993,3.2068,2533.1,2532.6,7.8878]
[1747589324190,3.2078,2532.8,2532.4,0.09218003]
[1747589324501,0.78942,2532.7,2532.4,0.09218003]
[1747589324692,3.2078,2532.5,2532.4,0.09218003]
[1747589324891,3.2078,2532.9,2532.5,9.55887071]
[1747589325091,3.99715,2532.9,2532.5,9.55887071]
[1747589325291,3.2078,2532.6,2532.5,1.03349706]
[1747589325492,3.2078,2532.6,2532.5,1.06889915]
[1747589325797,1.57680172,2532.7,2532.5,9.83829986]
[1747589325994,1.57680172,2532.7,2532.6,9.55887071]
[1747589326187,4.78460172,2532.7,2532.6,7.8878]
[1747589326396,4.78460172,2532.7,2532.6,0.27942915]
[1747589326699,4.78460172,2532.7,2532.4,0.09218003]
[1747589326894,5.57402172,2532.7,2532.4,9.76977543]
[1747589327095,4.78460172,2532.7,2532.4,0.09218003]
[1747589327398,4.78460172,2532.7,2532.3,9.55887071]
[1747589327399,2.54798607,2532.6,2532.3,9.55887071]
[1747589327592,2.54798607,2532.6,2532.5,0.78947]
[1747589327794,2.54798607,2532.6,2532.5,14.50640777]
[1747589327998,1.68764607,2532.6,2532.5,15.34834071]
[1747589328399,0.83349607,2532.6,2532.5,19.50640777]
[1747589328595,6.97986844,2533.4,2533.3,0.78922]
[1747589328797,6.97986844,2533.4,2533.3,10.34809071]
[1747589329104,3.2078,2534.4,2533.3,20.94826691]
[1747589329303,3.2078,2534.4,2534.1,7.66256932]
[1747589329805,0.78902,2534.0,2533.3,3.2078]
[1747589330101,3.2078,2534.1,2533.6,8.54469003]
[1747589330300,3.2078,2534.1,2533.9,8.54469003]
[1747589330505,5.27532315,2534.6,2534.5,0.78885]
[1747589330799,5.27532315,2534.6,2534.4,1.67107071]
[1747589331098,4.46945315,2534.6,2534.5,6.91839546]
[1747589331304,4.46945315,2534.6,2534.5,6.87361932]
[1747589331600,1.25958801,2533.5,2532.5,3.2078]
[1747589331795,1.25958801,2533.5,2533.4,7.71156003]
[1747589332204,1.25958801,2533.5,2533.4,17.79173349]
[1747589332406,1.25958801,2533.5,2533.4,20.99953349]
[1747589333100,1.25958801,2533.5,2533.4,17.79173349]
[1747589333300,1.57448501,2534.0,2533.9,0.78903]
[1747589333497,1.57448501,2534.0,2533.9,8.50059003]
[1747589333705,3.2078,2535.2,2534.5,0.78885]
[1747589333898,3.99644,2535.2,2534.5,8.50041003]
[1747589334099,3.2078,2535.2,2534.5,18.00429442]
[1747589334299,1.97245,2534.1,2533.0,0.78929]
[1747589334501,3.2078,2533.5,2533.2,6.38873003]
[1747589334698,0.7892,2533.4,2533.2,6.38873003]
[1747589335006,0.7892,2533.4,2532.7,4.2144871]
[1747589335194,3.2078,2533.4,2533.1,6.38873003]
[1747589335606,3.2078,2533.4,2533.2,6.38873003]
[1747589335807,3.99699,2533.4,2533.3,6.38873003]
[1747589336303,3.99699,2533.4,2533.0,4.45196946]
[1747589336304,8.2078,2533.4,2532.0,3.2078]
[1747589336599,3.2078,2533.2,2532.8,6.38873003]
[1747589336802,0.78941,2532.7,2532.1,1.2669]
[1747589337101,0.78941,2532.7,2532.4,0.78948]
[1747589337306,0.78941,2532.7,2532.3,0.78951]
[1747589337608,0.78941,2532.7,2532.1,1.2669]
[1747589337807,2.10171,2532.7,2532.0,0.78961]
[1747589338007,6.3123,2532.7,2531.6,4.4747]
[1747589338307,0.7899,2531.2,2531.0,3.2078]
[1747589338507,5.18183,2532.1,2531.4,6.38873003]
[1747589338695,3.2078,2531.5,2531.1,4.1127186]
[1747589338904,3.2078,2535.1,2533.3,3.37233963]
[1747589339203,3.2078,2535.1,2531.2,511.492]
[1747589339204,0.07892348,2534.1,2533.2,43.94357963]
[1747589339509,1.45102348,2534.1,2533.8,3.37233963]
[1747589339996,1.45102348,2534.1,2533.4,3.2078]
[1747589340201,1.45102348,2534.1,2533.6,3.37233963]
[1747589340404,0.07892348,2534.1,2533.6,1.97279]
[1747589340596,3.76352439,2534.2,2534.1,0.78897]
[1747589340807,2.93535439,2534.2,2534.1,43.94230963]
[1747589341104,0.33713885,2534.4,2534.3,0.78891]
[1747589341305,0.33713885,2534.4,2534.1,49.03996222]
[1747589341306,7.03e-06,2535.4,2535.3,4.16093963]
[1747589341505,5.28675392,2536.8,2536.7,0.78816]
[1747589341697,5.28675392,2536.8,2536.7,44.88695575]
[1747589342008,5.28675392,2536.8,2536.7,45.06934069]
[1747589342208,5.28675392,2536.8,2536.7,40.56916]
[1747589342411,5.28675392,2536.8,2536.7,46.17933644]
[1747589342604,6.70891403,2536.8,2536.7,46.17933644]
[1747589343001,6.70891403,2536.8,2536.7,40.56916]
[1747589343204,5.84791403,2536.8,2536.7,46.67915575]
[1747589343404,5.84791403,2536.8,2536.7,51.23720394]
[1747589343704,5.03375403,2536.8,2536.7,51.23720394]
[1747589344009,2.51487403,2536.8,2536.7,51.23720394]
[1747589344213,0.29592403,2536.8,2536.7,51.23720394]
[1747589344401,1.13120371,2537.5,2537.4,0.78795]
[1747589344706,0.31517371,2537.5,2537.4,9.44925558]